bitfinex/quotes_ETHUSD_20250731
["timestamp","ask_amount","ask_price","bid_price","bid_amount"]
[1753990903326,4.41263311,3753.4,3753.3,2.66432206]
[1753990903525,4.41263311,3753.4,3753.0,0.001]
[1753990903526,4.87803311,3753.4,3753.0,0.001]
[1753990903725,0.24563311,3753.3,3753.2,2.66439035]
[1753990903887,4.167,3753.3,3753.2,2.66439035]
[1753990904909,0.4704,3753.7,3753.4,2.66425107]
[1753990905082,4.41262746,3753.6,3753.5,2.66418009]
[1753990905486,0.24562746,3753.6,3753.5,2.66418009]
[1753990905790,4.41262746,3753.6,3753.5,2.66418009]
[1753990906320,0.24562746,3753.6,3753.5,2.66418009]
[1753990906520,0.1336,3753.7,3753.6,2.66410912]
[1753990906826,0.24560946,3753.9,3753.8,3.21396717]
[1753990907129,0.4548,3754.2,3754.1,2.66375429]
[1753990907423,1.16312812,3754.2,3754.1,2.66375429]
[1753990908014,1.16312812,3754.2,3753.9,6.95383799]
[1753990908015,1.16312812,3754.2,3753.9,3.74]
[1753990908213,1.16312812,3754.1,3753.9,3.74]
[1753990908413,5.32912812,3754.0,3753.9,6.40389621]
[1753990909125,4.6208,3754.0,3753.9,6.40389621]
[1753990909312,4.86637743,3754.0,3753.9,6.40389621]
[1753990910207,5.32907743,3754.0,3753.9,3.74]
[1753990910538,4.87427743,3754.0,3753.9,3.74]
[1753990910839,5.78486384,3754.0,3753.9,3.74]
[1753990912237,5.78486384,3754.0,3753.7,2.66402352]
[1753990912439,0.70037743,3753.9,3753.8,2.66396717]
[1753990912621,0.4568,3754.4,3754.1,2.66372687]
[1753990912929,0.4568,3754.4,3754.1,2.66368504]
[1753990912930,4.86522177,3754.3,3754.1,2.66368504]
[1753990913139,1.16292177,3754.2,3753.9,2.66383711]
[1753990913432,0.70022177,3754.1,3754.0,2.66381978]
[1753990913972,0.24542177,3754.1,3754.0,2.66381978]
[1753990914137,0.24542177,3754.2,3754.1,2.66375429]
[1753990914505,4.41042177,3754.2,3754.1,2.66375429]
[1753990914835,5.32792177,3754.2,3754.0,3.74]
[1753990915042,1.29572177,3754.1,3753.5,0.1336]
[1753990915239,0.24542177,3754.0,3753.6,2.66405669]
[1753990915536,0.1336,3753.7,3753.6,3.13735669]
[1753990915709,4.2986,3753.7,3753.6,2.66405669]
[1753990917043,2.66554864,3754.4,3753.6,2.66405669]
[1753990917044,0.4548,3754.3,3753.6,0.4733]
[1753990917348,0.4647,3754.4,3753.6,0.4733]
[1753990917349,4.41028445,3754.2,3754.1,2.66375429]
[1753990917525,4.41028445,3754.2,3754.1,3.66981338]
[1753990917734,0.24528445,3754.2,3754.1,7.95981338]
[1753990917933,0.002,3754.8,3754.7,3.21332862]
[1753990918253,0.002,3754.8,3754.7,16.94514435]
[1753990918406,4.165,3755.3,3755.2,3.212974]
[1753990918609,0.002,3755.7,3755.6,2.66269038]
[1753990920234,0.9195,3755.7,3755.1,3.74]
[1753990920421,0.9175,3755.6,3755.1,3.74]
[1753990920622,0.1328,3755.4,3755.1,3.74]
[1753990920830,0.9175,3755.3,3755.1,3.74]
[1753990921153,0.4548,3755.2,3755.1,3.74]
[1753990921311,3.11778656,3755.2,3754.8,0.1328]
[1753990921510,5.0825,3755.1,3754.7,2.66326981]
[1753990921715,0.9175,3755.0,3754.6,2.66339476]
[1753990921942,0.9175,3754.9,3754.7,2.66332647]
[1753990922252,0.4548,3754.9,3754.8,2.66325769]
[1753990922750,0.4548,3754.9,3754.7,2.66331121]
[1753990922947,0.4548,3754.9,3754.8,2.66325769]
[1753990923150,4.165,3755.1,3755.0,2.66311584]
[1753990923351,0.4548,3755.4,3754.8,2.66325308]
[1753990923551,4.164,3755.1,3754.8,2.66325308]
[1753990923752,4.166,3755.1,3754.9,2.66318676]
[1753990924055,4.166,3755.1,3754.7,2.66331949]
[1753990924556,4.166,3755.1,3754.6,2.66338616]
[1753990924852,4.6208,3755.1,3754.6,2.66338616]
[1753990925059,0.4548,3755.0,3754.5,3.21344852]
[1753990925267,0.002,3755.1,3754.8,2.66321202]
[1753990925466,5.0805,3755.0,3754.6,3.74]
[1753990925685,0.4548,3754.9,3754.7,2.66327629]
[1753990925974,4.163,3755.0,3754.7,2.66327629]
[1753990926145,4.163,3755.0,3754.8,2.66320185]
[1753990926987,4.163,3755.0,3754.6,3.74]
[1753990927186,4.6178,3755.0,3754.6,3.74]
[1753990927354,0.4548,3754.9,3754.6,3.74]
[1753990927738,0.4548,3754.9,3754.6,6.4033524]
[1753990927941,0.4548,3754.8,3754.6,3.74]
[1753990928450,0.4548,3754.7,3754.6,3.74]
[1753990929018,1.42555,3754.7,3753.9,3.74]
[1753990929147,4.163,3754.6,3754.0,2.66376793]
[1753990929485,4.163,3754.6,3754.3,2.66360355]
[1753990929672,4.163,3754.6,3754.4,2.6635288]
[1753990929876,4.163,3754.6,3754.4,2.66350123]
[1753990930205,4.163,3754.6,3754.2,2.66368334]
[1753990930354,0.4548,3754.5,3754.2,2.66368334]
[1753990930554,4.163,3754.6,3754.1,2.66373227]
[1753990930767,0.4548,3754.4,3754.2,2.66367272]
[1753990931169,4.163,3754.6,3753.9,3.74]
[1753990931497,0.9175,3754.3,3754.0,3.74]
[1753990931637,5.0805,3754.2,3754.0,3.74]
[1753990931841,4.2958,3754.2,3754.0,3.74]
[1753990932039,0.4548,3754.1,3754.0,3.74]
[1753990932644,0.9175,3754.1,3753.8,3.74]
[1753990932859,0.1328,3753.9,3753.8,3.74]
[1753990933065,4.99611119,3753.9,3753.8,3.74]
[1753990933600,5.45881119,3753.9,3753.8,3.74]
[1753990935159,0.24551119,3753.9,3753.8,17.50959948]
[1753990935366,0.24551119,3754.2,3754.1,3.21375429]
[1753990935606,0.24551119,3754.6,3754.5,2.6634705]
[1753990935903,0.24551119,3754.6,3754.5,3.3729052]
[1753990936064,0.24551119,3754.7,3754.6,3.21339956]
[1753990936270,0.24551119,3754.7,3754.6,2.79619956]
[1753990936587,0.24551119,3754.7,3754.1,3.74]
[1753990936796,0.24551119,3754.6,3754.3,0.1328]
[1753990936994,0.24551119,3754.5,3754.3,0.1328]
[1753990937311,4.40878542,3754.4,3754.3,0.1328]
[1753990937605,4.97508542,3754.4,3754.1,3.74]
[1753990937762,0.67928542,3754.3,3754.1,3.74]
[1753990937963,0.24578542,3754.2,3754.1,3.74]
[1753990938378,0.4335,3754.3,3754.1,3.74]
[1753990938901,0.4335,3754.3,3754.0,6.40381773]
[1753990939271,0.4335,3754.3,3754.0,3.74]
[1753990939471,0.4335,3754.3,3754.0,6.40379925]
[1753990939671,0.4335,3754.3,3754.0,3.74]
[1753990940003,0.4335,3754.3,3754.2,2.66368334]
[1753990940570,4.2958,3754.4,3754.2,2.66368334]
[1753990940878,4.163,3754.4,3754.3,2.66361239]
[1753990941208,0.002,3755.1,3755.0,2.66311584]
[1753990941435,0.002,3755.1,3755.0,7.44251584]
[1753990941977,0.24791842,3755.1,3755.0,7.52131584]
[1753990942177,0.24791842,3755.1,3755.0,8.42916911]
[1753990942383,0.002,3755.1,3755.0,8.42916911]
[1753990942576,0.002,3755.1,3755.0,8.35036911]
[1753990943193,0.002,3755.1,3755.0,11.35036911]
[1753990943511,0.002,3756.1,3755.6,3.21269038]
[1753990943512,1e-08,3755.7,3755.6,3.21269038]
[1753990943728,0.002,3756.1,3756.0,3.21240681]
[1753990943881,4.162,3757.1,3756.3,0.55]
[1753990944213,4.162,3757.1,3756.3,1.94725327]
[1753990944519,4.162,3757.1,3757.0,2.66169816]
[1753990944697,4.162,3757.1,3756.9,2.66174712]
[1753990944870,0.4335,3757.3,3756.9,2.66174712]
[1753990945072,0.4335,3757.2,3757.0,2.66167464]
[1753990945583,0.4335,3757.2,3756.8,2.66183385]
[1753990945584,0.4335,3757.2,3757.1,2.66162731]
[1753990945998,0.4335,3757.2,3756.4,0.02662123]
[1753990946195,4.161,3757.1,3756.8,2.66177279]
[1753990946421,4.161,3757.1,3756.7,2.66191028]
[1753990946593,0.002,3757.5,3756.7,0.55]
[1753990946913,4.161,3757.3,3757.2,2.66149527]
[1753990947471,4.161,3757.3,3757.2,3.21149527]
[1753990947707,4.161,3757.3,3757.2,3.70089527]
[1753990947876,0.002,3757.5,3757.4,3.2114148]
[1753990948286,0.002,3757.5,3757.4,3.7008148]
[1753990948478,0.002,3757.5,3757.4,4.33704581]
[1753990949611,0.002,3757.5,3757.4,7.36365995]
[1753990949813,0.4335,3758.9,3758.8,2.66042353]
[1753990950029,0.4335,3758.9,3757.6,2.66127315]
[1753990950030,0.8972,3758.9,3758.1,9.99181573]
[1753990950178,0.4335,3758.9,3758.8,2.66042353]
[1753990950572,0.4335,3758.9,3758.6,0.55]
[1753990950818,0.8972,3758.8,3758.5,0.55]
[1753990951019,7.7177574,3758.7,3757.6,4.16]
[1753990951180,0.1328,3758.5,3758.1,2.66089714]
[1753990951379,0.1328,3758.5,3758.1,2.66090642]
[1753990951380,0.8972,3758.4,3758.1,2.66090642]
[1753990951715,0.4335,3758.3,3758.0,0.55]
[1753990951902,0.4335,3758.3,3758.2,2.66084827]
[1753990952214,0.1328,3758.6,3758.1,0.1328]
[1753990952411,0.5965,3758.6,3758.2,2.66080015]
[1753990952619,0.8972,3758.5,3758.1,2.79371689]
[1753990952819,0.68273693,3758.6,3758.1,0.1328]
[1753990952985,0.8972,3758.5,3758.1,0.1328]
[1753990953189,0.8972,3758.5,3756.9,4.159]
[1753990953190,2.66096452,3758.1,3756.9,4.159]
[1753990953419,2.6610719,3757.9,3756.7,0.4894]
[1753990953577,0.8972,3757.8,3756.8,0.4894]
[1753990953783,7.0860874,3758.0,3756.8,0.4894]
[1753990953784,4.42509645,3758.0,3756.8,10.50783412]
[1753990954007,4.159,3758.0,3757.9,2.66106069]
[1753990954212,4.159,3758.0,3757.9,3.21106069]
[1753990954983,4.159,3758.0,3757.9,6.95106069]
[1753990955419,4.159,3758.0,3757.9,4.29]
[1753990955803,0.4335,3758.2,3758.0,2.66098662]
[1753990956005,4.5925,3758.2,3758.0,2.66098662]
[1753990956301,4.5925,3758.2,3757.9,6.95105544]
[1753990956499,4.5925,3758.2,3757.9,4.29]
[1753990956710,4.159,3758.2,3757.9,4.29]
[1753990956915,0.4335,3758.1,3757.9,6.95105996]
[1753990957325,1.40282,3758.0,3757.9,3.74]
[1753990957691,0.50562,3758.0,3757.9,3.74]
[1753990957917,4.159,3758.2,3757.9,6.40103499]
[1753990958093,4.5925,3758.2,3757.9,3.74]
[1753990958612,0.8972,3758.1,3757.9,3.74]
[1753990959111,0.4335,3758.1,3758.0,3.74]
[1753990959428,0.4335,3758.1,3757.6,0.55]
[1753990959429,5.0552,3758.1,3757.6,0.55]
[1753990959721,0.8972,3758.0,3757.4,0.55]
[1753990959921,4.158,3757.9,3757.4,3.21137704]
[1753990960130,0.8972,3757.8,3757.4,0.55]
[1753990960330,0.4335,3757.7,3757.4,3.21140516]
[1753990960531,4.158,3757.9,3757.4,2.66136738]
[1753990960726,0.8972,3757.6,3757.4,2.66136738]
[1753990960928,4.91705587,3757.9,3757.3,3.74]
[1753990960929,0.8972,3757.5,3757.3,3.74]
[1753990961133,5.0552,3757.4,3756.7,6.40190301]
[1753990961329,4.158,3757.3,3756.8,3.74]
[1753990961496,5.0552,3757.2,3756.9,2.66171848]
[1753990961695,0.8972,3757.1,3756.5,2.66205244]
[1753990961905,0.4335,3757.0,3756.8,2.66183443]
[1753990962229,4.92965458,3757.2,3756.4,3.74]
[1753990962230,4.158,3757.2,3756.5,2.66205244]
[1753990962531,4.158,3757.2,3757.1,2.66162731]
[1753990962939,4.158,3757.6,3757.1,0.57661627]
[1753990963122,4.158,3757.6,3757.5,3.21134397]
[1753990963451,4.158,3757.6,3757.5,3.34414397]
[1753990963595,0.4335,3758.6,3757.5,3.3707574]
[1753990963800,0.4335,3758.6,3758.3,2.66077747]
[1753990963801,0.1328,3758.4,3758.3,2.66077747]
[1753990964001,0.49220938,3758.4,3758.3,2.66077747]
[1753990964299,0.4335,3758.4,3757.9,2.6610107]
[1753990964649,0.4335,3758.4,3758.1,0.1328]
[1753990964650,4.158,3758.3,3758.1,0.1328]
[1753990964851,4.158,3758.3,3758.1,2.79369357]
[1753990965000,0.4335,3758.2,3758.1,3.34369357]
[1753990965502,4.158,3758.3,3758.2,2.66084827]
[1753990966121,4.40285335,3758.3,3758.2,2.66084827]
[1753990966355,4.40291378,3758.3,3758.2,2.66084827]
[1753990967215,0.24491378,3758.3,3758.2,2.66084827]
[1753990967411,0.24491378,3758.5,3758.4,2.66070668]
[1753990967627,0.24491378,3758.5,3758.4,3.21070668]
[1753990967937,4.158,3758.6,3758.5,3.21063589]
[1753990968143,0.002,3758.8,3758.7,3.21049431]
[1753990968657,0.24697967,3758.8,3758.7,3.21049431]
[1753990968964,0.002,3758.8,3758.7,3.34329431]
[1753990969301,0.2470278,3758.8,3758.7,3.34329431]
[1753990969499,0.2470278,3758.8,3758.7,3.80269431]
[1753990969933,0.002,3758.8,3758.7,3.80269431]
[1753990971146,0.002,3758.8,3758.7,3.34329431]
[1753990971329,0.002,3758.8,3758.7,7.08329431]
[1753990972759,0.002,3758.8,3758.7,15.31900546]
[1753990973625,1e-08,3758.8,3758.7,22.46900546]
[1753990975213,0.002,3759.9,3758.9,3.55]
[1753990975531,0.002,3759.9,3759.8,3.34251594]
[1753990975840,0.002,3759.9,3759.8,7.6827474]
[1753990976200,0.4452,3759.9,3759.8,7.6827474]
[1753990976938,0.8972,3759.9,3759.8,6.39971593]
[1753990978016,0.4452,3759.9,3759.8,6.39971593]
[1753990978646,0.8972,3759.9,3759.8,6.39971593]
[1753990979241,0.4452,3759.9,3759.8,6.39971593]
[1753990979445,0.002,3759.9,3759.8,3.20971594]
[1753990979606,0.002,3759.9,3759.8,3.80995311]
[1753990980033,0.002,3759.9,3759.8,4.26935311]
[1753990980416,0.002,3759.9,3759.8,3.80995311]
[1753990980643,3.10485143,3759.9,3759.2,3.73999999]
[1753990980940,0.1328,3759.3,3758.8,0.1328]
[1753990981241,0.1328,3759.3,3758.6,2.66051806]
[1753990981242,5.0502,3759.2,3758.6,2.66051806]
[1753990981444,0.1328,3758.9,3758.6,2.66051806]
[1753990981742,4.155,3759.3,3759.1,2.66020653]
[1753990981910,4.5982,3759.3,3759.1,2.66020653]
[1753990982314,0.1328,3759.5,3759.2,2.6601399]
[1753990982647,0.4432,3759.3,3758.9,0.1328]
[1753990982844,0.1328,3759.1,3758.5,4.2878]
[1753990983050,0.1328,3759.1,3759.0,2.66028198]
[1753990983573,0.4432,3759.1,3759.0,2.66028198]
[1753990983706,0.4432,3759.1,3759.0,3.34308198]
[1753990984071,4.155,3759.3,3759.0,3.34308198]
[1753990984072,4.155,3759.3,3759.2,2.66014045]
[1753990984416,4.40076599,3759.3,3759.1,0.55]
[1753990984616,4.5982,3759.3,3759.2,2.66014045]
[1753990984908,4.40074995,3759.3,3759.2,3.94326149]
[1753990985135,4.40074995,3759.3,3759.2,7.68326148]
[1753990985446,4.40079655,3759.3,3759.2,7.68326148]
[1753990985807,4.155,3759.3,3759.2,7.68326148]
[1753990986010,4.155,3759.3,3759.2,3.94326149]
[1753990986352,0.1328,3759.8,3759.6,2.65980003]
[1753990986353,4.155,3759.8,3759.6,2.65980003]
[1753990986664,4.5982,3759.8,3759.7,2.65978668]
[1753990986961,0.2458216,3759.8,3759.7,3.34258668]
[1753990987129,0.2458216,3759.8,3759.7,3.94283754]
[1753990987323,0.002,3759.9,3759.8,3.20971594]
[1753990989394,0.002,3759.9,3759.8,10.98251309]
[1753990989692,0.002,3759.9,3759.8,11.03471594]
[1753990990266,0.24777486,3759.9,3759.8,10.95591594]
[1753990990466,0.24777486,3759.9,3759.8,11.61886821]
[1753990990792,0.002,3759.9,3759.8,11.61886821]
[1753990991150,0.002,3760.3,3760.2,2.659433]
[1753990991351,1e-08,3760.3,3760.2,6.209433]
[1753990991593,1e-08,3760.3,3760.2,7.26915404]
[1753990992195,1e-08,3760.3,3760.2,7.40195404]
[1753990992356,1e-08,3760.3,3760.2,7.60099538]
[1753990993252,0.002,3760.6,3760.5,3.20922084]
[1753990993672,0.002,3760.6,3760.5,3.34202084]
[1753990993877,0.4452,3760.6,3760.5,0.1328]
[1753990994077,0.8972,3760.6,3760.2,0.0268]
[1753990994285,0.8952,3760.5,3760.2,0.0268]
[1753990994578,0.1328,3760.4,3760.2,0.0268]
[1753990994783,0.03229851,3760.3,3759.4,3.73999999]
[1753990994968,0.1328,3759.7,3758.5,8.26699999]
[1753990995289,5.08049851,3759.6,3758.8,0.1328]
[1753990995464,0.1328,3759.3,3758.9,2.66034218]
[1753990995664,0.8952,3759.2,3758.9,2.66034218]
[1753990995903,0.1328,3759.3,3758.8,2.66040418]
[1753990996061,0.8952,3759.1,3757.3,9.99181573]
[1753990996399,0.1328,3758.8,3758.2,0.1328]
[1753990996596,0.4432,3759.1,3758.7,0.1328]
[1753990996763,0.4432,3759.1,3759.0,2.66028198]
[1753990996963,0.4432,3759.1,3758.7,2.66047582]
[1753990996964,0.9343,3759.1,3758.7,2.66047582]
[1753990997163,0.9186,3759.0,3758.7,2.79327582]
[1753990997385,0.9186,3759.0,3758.8,2.66041965]
[1753990997599,0.9186,3758.9,3758.7,0.1328]
[1753990998084,0.4275,3758.8,3758.7,0.6828]
[1753990998255,0.4275,3759.3,3759.0,2.66028198]
[1753990998462,0.24628723,3759.2,3758.8,2.66041086]
[1753990998772,1.16489844,3759.1,3758.9,2.66034298]
[1753990999100,0.9186,3759.1,3759.0,2.66028198]
[1753990999264,0.9186,3759.1,3758.8,2.66040145]
[1753990999461,0.4275,3759.0,3758.7,3.34328293]
[1753990999664,0.4275,3759.0,3758.8,2.66037708]
[1753990999865,0.4275,3759.0,3758.7,0.6828]
[1753990999866,0.4275,3759.0,3758.9,2.66035276]
[1753991000168,0.4275,3759.0,3758.8,2.66041141]
[1753991000565,4.154,3759.3,3758.7,3.34328467]
[1753991000766,0.4275,3758.9,3758.7,0.6828]
[1753991001065,0.4275,3758.8,3758.7,3.34327998]
[1753991001271,0.9186,3758.8,3758.4,0.55]
[1753991001466,0.9186,3758.7,3758.3,0.1328]
[1753991001669,5.0726,3758.7,3758.1,0.1328]
[1753991001920,1.0514,3758.6,3758.1,0.1328]
[1753991002122,0.9186,3758.5,3758.2,2.66084727]
[1753991002590,4.154,3758.7,3758.2,2.66084727]
[1753991002591,4.153,3758.7,3758.3,2.66072295]
[1753991002790,0.9186,3758.6,3758.2,0.55]
[1753991002990,4.2858,3758.7,3758.2,0.55]
[1753991003307,0.1328,3758.7,3758.5,0.55]
[1753991003509,4.40023764,3758.6,3758.5,3.21063589]
[1753991003869,4.40023395,3758.6,3758.5,3.21063589]
[1753991004220,4.40023395,3758.6,3758.5,3.34343589]
[1753991004989,5.31883395,3758.6,3758.5,0.1328]
[1753991005176,5.31883395,3758.6,3758.4,2.79348713]
[1753991005496,0.9186,3758.5,3758.4,3.34348713]
[1753991005674,0.9186,3758.5,3758.4,2.66068713]
[1753991006271,0.9186,3758.5,3758.3,2.79355029]
[1753991006510,0.4911,3758.5,3758.4,2.66070668]
[1753991006879,4.154,3758.6,3758.4,3.73999999]
[1753991007202,0.4275,3758.5,3758.4,3.73999999]
[1753991007401,0.9186,3758.5,3758.4,3.73999999]
[1753991007608,5.31868639,3758.5,3758.4,3.73999999]
[1753991007902,4.89118639,3758.5,3758.4,3.73999999]
[1753991008113,4.89118639,3758.5,3757.7,4.154]
[1753991008114,7.97932228,3758.5,3757.9,3.73999999]
[1753991008327,1.1969849,3758.4,3757.5,0.001]
[1753991008537,0.1328,3758.0,3757.5,0.1338]
[1753991008833,0.1328,3757.7,3757.5,0.001]
[1753991008987,4.154,3757.6,3757.5,0.001]
[1753991009188,5.0726,3757.6,3757.5,0.001]
[1753991010229,4.5815,3757.6,3757.5,2.66234397]
[1753991010390,5.0726,3757.6,3757.5,0.001]
[1753991010588,7.73387315,3757.6,3757.5,0.001]
[1753991010784,8.52054047,3757.6,3757.5,0.001]
[1753991011114,8.76626529,3757.6,3757.5,0.001]
[1753991011498,6.10499214,3757.6,3757.5,0.001]
[1753991012122,8.76626529,3757.6,3757.5,0.001]
[1753991012333,11.76626529,3757.6,3757.5,0.001]
[1753991012832,12.0115588,3757.6,3757.5,0.001]
[1753991015435,7.8575588,3757.6,3757.5,0.001]
[1753991015590,12.0115588,3757.6,3757.5,0.001]
[1753991015784,11.52054047,3757.6,3757.5,0.001]
[1753991017122,11.76520024,3757.6,3757.5,1e-08]
[1753991017283,2.66155647,3757.2,3757.1,1e-08]
[1753991017618,5.66183986,3756.8,3756.7,0.001]
[1753991017818,10.19314002,3756.8,3756.7,0.001]
[1753991018119,11.11174002,3756.8,3756.7,0.001]
[1753991018318,12.73338857,3756.8,3756.7,0.001]
[1753991018822,12.73338881,3756.8,3756.7,0.001]
[1753991019265,12.48908942,3756.8,3756.7,0.001]
[1753991019622,12.73320019,3756.8,3756.7,0.001]
[1753991019804,12.48908942,3756.8,3756.7,0.001]
[1753991020840,12.73296978,3756.8,3756.7,0.001]
[1753991021332,12.73396978,3756.8,3756.7,0.001]
[1753991022134,12.49008942,3756.8,3756.7,0.001]
[1753991022337,12.73396369,3756.8,3756.7,0.001]
[1753991024234,12.24286369,3756.8,3756.7,0.001]
[1753991024744,12.73396369,3756.8,3756.7,0.001]
[1753991025135,12.7341973,3756.8,3756.7,0.001]
[1753991025641,12.49008942,3756.8,3756.7,0.001]
[1753991026041,4.75464956,3756.8,3756.7,0.001]
[1753991026244,10.19414002,3756.8,3756.7,0.001]
[1753991026454,10.63284002,3756.8,3756.7,0.001]
[1753991026617,11.09684002,3756.8,3756.7,0.001]
[1753991026803,11.34102638,3756.8,3756.7,0.001]
[1753991027006,10.63284002,3756.8,3756.7,0.001]
[1753991027202,12.71696694,3756.8,3756.7,0.001]
[1753991027910,12.47269489,3756.8,3756.7,0.001]
[1753991029008,12.7169495,3756.8,3756.7,0.001]
[1753991029239,8.31769489,3756.8,3756.7,0.001]
[1753991029508,12.47269489,3756.8,3756.7,0.001]
[1753991030148,11.56999489,3756.8,3756.7,0.001]
[1753991030351,12.47269489,3756.8,3756.7,0.001]
[1753991031452,2.6621233,3756.4,3756.3,0.001]
[1753991031649,7.9263384,3756.4,3756.3,0.001]
[1753991031815,8.92953989,3756.4,3756.3,0.001]
[1753991033663,9.26741659,3756.4,3755.1,4.23089999]
[1753991033863,3.24450016,3756.3,3755.1,0.4909]
[1753991034012,5.66251986,3755.9,3755.2,0.4909]
[1753991034214,7.06205791,3755.8,3755.2,0.4909]
[1753991034442,7.39950016,3755.7,3755.2,0.4909]
[1753991034644,0.1328,3755.3,3755.2,0.4909]
[1753991034847,4.53230016,3755.3,3755.2,0.4909]
[1753991036059,5.55361695,3755.3,3754.8,3.73999999]
[1753991036254,0.1328,3754.9,3754.8,3.73999999]
[1753991036549,0.1328,3754.9,3754.8,6.89415768]
[1753991036550,4.53264914,3754.9,3754.8,6.89415768]
[1753991037453,4.53264914,3754.9,3754.8,4.23089999]
[1753991037854,4.53264914,3754.9,3754.8,6.89415768]
[1753991038650,4.53264914,3754.9,3754.4,2.66349707]
[1753991038856,0.1328,3754.7,3754.3,3.73999999]
[1753991039053,0.1328,3754.5,3754.3,4.23089999]
[1753991039348,4.43214765,3754.4,3754.2,0.001]
[1753991039651,0.24484914,3754.3,3754.2,0.001]
[1753991039852,0.24484914,3754.3,3754.2,2.66468334]
[1753991040150,0.24484914,3754.3,3754.2,2.77028334]
[1753991040354,4.39984914,3754.3,3754.2,2.66468334]
[1753991040514,4.39984914,3754.3,3754.2,0.001]
[1753991040715,4.53264914,3754.3,3754.2,0.001]
[1753991041552,5.00364765,3754.3,3754.2,0.001]
[1753991041798,0.37764914,3754.3,3754.2,0.001]
[1753991042061,4.53264914,3754.3,3754.2,0.001]
[1753991042241,4.53264914,3754.3,3754.2,0.4919]
[1753991042430,4.53264914,3754.3,3754.2,0.001]
[1753991044065,4.53326977,3754.3,3754.2,0.001]
[1753991044857,4.53326977,3754.3,3754.2,2.66468334]
[1753991045059,4.53326977,3754.3,3754.2,3.15558334]
[1753991046165,4.53326977,3754.3,3754.2,0.4919]
[1753991046355,4.53326977,3754.3,3754.2,0.001]
[1753991046557,4.53326977,3754.3,3754.2,2.66468334]
[1753991046727,0.37826977,3754.3,3754.2,3.15558334]
[1753991046929,0.24546977,3754.3,3754.2,4.3931225]
[1753991047130,4.155,3754.9,3754.3,0.55]
[1753991047434,4.155,3755.0,3754.9,2.66318676]
[1753991047657,4.155,3755.0,3754.9,3.15408676]
[1753991047868,0.1328,3755.2,3755.1,2.66304492]
[1753991048051,0.464,3756.1,3755.5,2.66274937]
[1753991048258,0.1328,3755.6,3755.5,2.66274937]
[1753991048435,4.2878,3755.6,3755.5,3.15364937]
[1753991048632,0.1328,3755.7,3755.6,2.66269038]
[1753991048967,0.1328,3755.7,3755.6,3.15359038]
[1753991049148,4.154,3755.8,3755.7,2.66261948]
[1753991049468,6.398,3756.5,3756.1,2.66233593]
[1753991049668,0.1328,3756.3,3756.2,0.4909]
[1753991049903,0.4387,3757.5,3756.3,0.55]
[1753991050180,0.4387,3757.5,3756.0,2.6623972]
[1753991050181,0.4387,3757.2,3756.0,0.1328]
[1753991050342,0.4387,3757.2,3756.0,2.66239102]
[1753991050343,0.1328,3756.3,3756.0,2.66239102]
[1753991050544,0.1328,3756.1,3755.9,2.66246453]
[1753991050749,4.154,3756.0,3755.8,2.66254226]
[1753991051072,4.154,3756.0,3755.9,2.6624777]
[1753991051383,4.154,3756.0,3755.7,2.66256269]
[1753991051682,0.1328,3755.8,3755.7,2.66256269]
[1753991051861,0.1328,3755.8,3755.7,2.66261948]
[1753991052061,0.1328,3755.8,3755.7,3.15351948]
[1753991052358,0.1328,3755.8,3755.7,2.66261948]
[1753991052559,0.1328,3755.8,3755.3,2.79569295]
[1753991052764,0.1328,3755.8,3755.6,2.66264194]
[1753991053231,0.60535,3755.8,3755.6,2.66268364]
[1753991053587,4.154,3756.0,3755.3,0.4909]
[1753991053790,4.154,3756.0,3755.6,2.66265985]
[1753991053961,0.93499851,3755.9,3755.4,2.66276779]
[1753991054130,0.4387,3755.8,3755.5,2.662753]
[1753991054337,4.618,3756.0,3755.6,2.66269038]
[1753991054550,0.002,3756.3,3756.2,2.66226505]
[1753991054785,0.002,3756.3,3756.2,3.21226505]
[1753991054986,0.002,3756.3,3756.2,13.82720343]
[1753991055142,4.153,3757.4,3756.6,3.21198157]
[1753991055650,6.398,3757.9,3756.6,3.80848157]
[1753991055881,4.153,3757.5,3756.6,4.45553646]
[1753991056040,4.153,3757.5,3756.6,4.34993646]
[1753991056590,0.49639851,3757.4,3756.6,2.66198157]
[1753991056740,0.4641,3757.4,3756.6,2.66198157]
[1753991056977,0.4749,3757.3,3756.6,2.66198157]
[1753991057365,0.4749,3757.3,3756.3,3.15658626]
[1753991057695,4.152,3756.8,3756.6,2.66198157]
[1753991057900,0.49839851,3756.7,3755.8,0.4944]
[1753991058076,0.4661,3756.7,3756.4,2.66212296]
[1753991058275,0.5093,3756.6,3756.4,2.66212296]
[1753991058826,0.002,3756.7,3756.4,2.66210179]
[1753991059406,0.002,3756.7,3755.8,2.66251135]
[1753991059407,0.939,3756.6,3755.7,0.4944]
[1753991059615,0.4641,3756.6,3755.7,0.4944]
[1753991059907,0.4641,3756.6,3756.2,2.66220093]
[1753991060106,0.9734,3756.6,3755.7,3.15701176]
[1753991060309,0.9734,3756.6,3754.2,3.2466176]
[1753991060310,2.66198157,3756.6,3754.2,3.2466176]
[1753991060507,2.66234964,3756.1,3755.3,2.66285542]
[1753991060717,7.76244514,3756.0,3755.0,2.6630718]
[1753991061008,2.66263616,3755.7,3755.0,2.6630718]
[1753991061233,3.60169309,3755.6,3755.0,2.6630718]
[1753991061374,0.939,3755.6,3754.6,0.4944]
[1753991061574,0.939,3755.6,3754.7,3.21332862]
[1753991061890,4.171,3755.5,3755.3,2.66285181]
[1753991062087,0.4641,3756.0,3755.0,0.4944]
[1753991062275,2.66391638,3756.7,3755.7,2.66257973]
[1753991062276,4.41623474,3755.9,3755.7,2.66257973]
[1753991062475,4.41623474,3755.9,3754.9,0.55]
[1753991062476,4.6351,3755.8,3754.9,0.55]
[1753991062809,0.03229851,3755.7,3755.3,2.66289357]